bitfinex-derivatives/quotes_SOLF0:USTF0_20220106
["timestamp","ask_amount","ask_price","bid_price","bid_amount"]
[1641462899964,31.66479,147.3,147.29,14.37510594]
[1641462900163,27.66479,147.3,147.27,14.37510594]
[1641462900366,4.0,147.32,147.27,14.37510594]
[1641462900765,27.66479,147.33,147.27,14.37510594]
[1641462900965,12.44473108,147.32,147.23,77.38380594]
[1641462901368,4.0,147.31,147.23,77.38380594]
[1641462901566,4.0,147.29,147.23,77.38380594]
[1641462901767,12.44473108,147.32,147.23,77.38380594]
[1641462902167,12.44473108,147.32,147.24,4.0]
[1641462902366,12.44473108,147.32,147.23,81.38380594]
[1641462902568,12.44473108,147.32,147.24,4.0]
[1641462902766,12.44473108,147.32,147.23,81.38380594]
[1641462903169,6.78403039,147.34,147.25,14.37510594]
[1641462903367,6.78403039,147.34,147.26,4.0]
[1641462904068,6.78403039,147.34,147.32,27.66479]
[1641462905570,12.44473108,147.36,147.32,27.66479]
[1641462905769,38.34718141,147.38,147.32,27.66479]
[1641462905968,38.34718141,147.38,147.35,27.66479]
[1641462906370,38.34718141,147.37,147.35,27.66479]
[1641462907371,67.53430914,147.41,147.35,27.66479]
[1641462907372,38.34718141,147.4,147.35,27.66479]
[1641462907971,38.34718141,147.4,147.39,27.66479]
[1641462908171,64.31305101,147.45,147.39,27.66479]
[1641462909372,6.77874187,147.45,147.39,27.66479]
[1641462913180,57.53430914,147.46,147.39,27.66479]
[1641462913381,6.77897163,147.45,147.39,27.66479]
[1641462913783,4.0,147.42,147.35,65.2927]
[1641462913982,4.0,147.41,147.35,65.2927]
[1641462914182,4.0,147.41,147.34,14.37510594]
[1641462914183,4.0,147.4,147.34,14.37510594]
[1641462914383,10.78081031,147.41,147.34,14.37510594]
[1641462914783,10.78081031,147.41,147.32,27.66479]
[1641462914984,6.78081031,147.41,147.32,27.66479]
[1641462915185,10.78081031,147.41,147.32,27.66479]
[1641462915783,4.0,147.4,147.32,27.66479]
[1641462915984,10.78081031,147.41,147.32,27.66479]
[1641462916285,4.0,147.4,147.32,27.66479]
[1641462916685,10.78081031,147.41,147.32,27.66479]
[1641462916886,4.0,147.4,147.3,90.13509]
[1641462917085,6.78241997,147.37,147.28,14.37510594]
[1641462917286,4.0,147.33,147.28,14.37510594]
[1641462917587,10.78334012,147.35,147.28,14.37510594]
[1641462917788,6.78334012,147.35,147.28,14.37510594]
[1641462917986,6.78288001,147.36,147.25,27.66479]
[1641462918287,10.78357019,147.35,147.25,27.66479]
[1641462918487,4.0,147.33,147.25,27.66479]
[1641462919486,4.0,147.32,147.25,27.66479]
[1641462920492,4.0,147.33,147.25,27.66479]
[1641462920691,27.66479,147.34,147.25,27.66479]
[1641462921391,4.0,147.33,147.25,27.66479]
[1641462921592,4.0,147.31,147.25,27.66479]
[1641462921791,4.0,147.3,147.25,27.66479]
[1641462921991,10.78633233,147.29,147.25,27.66479]
[1641462922391,10.78564158,147.3,147.25,27.66479]
[1641462922591,4.0,147.26,147.23,27.66479]
[1641462922792,4.0,147.25,147.21,14.37510594]
[1641462923192,10.788175,147.25,147.21,14.37510594]
[1641462923392,10.788175,147.25,147.13,123.73560914]
[1641462923393,10.79001867,147.22,147.13,57.53430914]
[1641462923593,4.0,147.18,147.13,58.86305882]
[1641462923792,20.0,147.23,147.13,58.86305882]
[1641462923793,6.79232467,147.16,147.13,1.32874968]
[1641462923992,4.0,147.15,147.13,1.32874968]
[1641462924192,4.0,147.15,147.06,158.82241262]
[1641462924193,27.66479,147.17,147.06,95.60164218]
[1641462924397,4.0,147.16,147.06,95.60164218]
[1641462924594,34.45665335,147.17,147.06,95.60164218]
[1641462924794,27.66479,147.17,147.06,95.60164218]
[1641462924996,27.66479,147.17,147.05,0.08]
[1641462925497,10.79232467,147.16,147.05,0.08]
[1641462925694,6.7941706,147.12,147.05,0.08]
[1641462925894,4.0,147.11,147.05,0.08]
[1641462926094,27.66479,147.09,147.05,0.08]
[1641462926497,6.79301678,147.14,147.05,0.08]
[1641462926897,39.64320642,147.16,147.05,0.08]
[1641462927297,4.0,147.17,147.05,0.08]
[1641462927497,6.79278606,147.15,147.05,0.08]
[1641462927899,6.79278606,147.15,147.05,4.08]
[1641462928100,27.66479,147.11,147.05,0.08]
[1641462929300,27.66479,147.11,147.07,38.38613124]
[1641462929900,34.45942224,147.11,147.07,38.38613124]
[1641462930099,27.66479,147.08,147.07,38.38613124]
[1641462930301,27.66479,147.08,147.05,38.46613124]
[1641462930901,4.0,147.07,147.05,38.46613124]
[1641462931099,10.79740339,147.06,146.99,6.72635108]
[1641462931301,6.79740339,147.06,146.92,68.6478]
[1641462931500,4.0,147.03,146.92,68.6478]
[1641462931700,6.8001768,146.99,146.91,4.0]
[1641462931900,6.80040802,146.98,146.9,71.4063]
[1641462932101,27.66479,146.93,146.9,71.4063]
[1641462932304,27.66479,146.93,146.9,4.0]
[1641462932502,27.66479,146.93,146.89,129.63419924]
[1641462932702,27.66479,146.93,146.89,119.69419924]
[1641462933102,27.66479,146.93,146.85,137.2236]
[1641462933304,27.66479,146.93,146.85,68.5758]
[1641462933904,27.66479,146.93,146.83,66.2719]
[1641462934102,4.0,146.95,146.84,6.79925208]
[1641462934305,27.66479,146.96,146.83,73.0718456]
[1641462934503,31.66479,146.96,146.83,66.2719]
[1641462934704,4.0,147.01,146.87,6.79786547]
[1641462935003,4.0,147.0,146.87,6.79786547]
[1641462935204,5.44144171,147.02,146.87,4.0]
[1641462935403,4.0,147.06,146.88,4.0]
[1641462935607,4.0,147.07,146.91,4.0]
[1641462935806,4.0,147.08,146.87,4.0]
[1641462936106,27.66479,146.99,146.89,27.66479]
[1641462936304,27.66479,147.02,146.88,4.0]
[1641462936509,6.79925208,146.99,146.89,4.0]
[1641462936705,6.79925208,146.99,146.87,4.0]
[1641462936905,6.79925208,146.99,146.86,27.66479]
[1641462937106,6.79925208,146.99,146.86,4.0]
[1641462937505,6.79925208,146.99,146.84,4.0]
[1641462937705,6.7999456,146.98,146.84,4.0]
[1641462937905,6.7999456,146.98,146.88,4.0]
[1641462938106,27.66479,146.94,146.9,4.0]
[1641462938310,27.66479,146.94,146.84,27.66479]
[1641462938311,27.66479,146.94,146.84,31.66479]
[1641462939108,27.66479,146.94,146.83,4.0]
[1641462939310,34.46635436,146.94,146.82,191.6174]
[1641462939509,34.46635436,146.94,146.81,119.69419924]
[1641462939710,4.0,146.9,146.81,119.69419924]
[1641462939911,6.80735194,146.82,146.81,119.69419924]
[1641462940114,62.13693194,146.82,146.81,119.69419924]
[1641462940312,66.13693194,146.82,146.81,119.69419924]
[1641462940513,66.13693194,146.82,146.8,57.67577669]
[1641462940712,62.13693194,146.82,146.8,57.67577669]
[1641462940914,62.13693194,146.82,146.8,57.35477669]
[1641462940915,4.0,146.81,146.8,57.35477669]
[1641462941116,4.0,146.81,146.8,30.46018186]
[1641462941516,24.0,146.81,146.8,27.46018186]
[1641462941914,4.0,146.81,146.8,27.46018186]
[1641462942514,4.0,146.81,146.75,86.12629448]
[1641462942717,86.13693194,146.82,146.75,86.12629448]
[1641462942915,4.0,146.81,146.75,63.12629448]
[1641462943115,62.13693194,146.82,146.75,63.12629448]
[1641462943317,4.0,146.81,146.71,130.85607148]
[1641462943517,4.0,146.78,146.71,130.85607148]
[1641462943718,6.81129312,146.73,146.71,130.85607148]
[1641462943916,4.0,146.8,146.71,124.85607148]
[1641462944117,34.47724316,146.72,146.71,124.85607148]
[1641462944317,34.47724316,146.72,146.71,119.69419924]
[1641462945620,34.47724316,146.72,146.71,96.68659924]
[1641462946120,38.47724316,146.72,146.71,96.68659924]
[1641462946319,34.47724316,146.72,146.65,143.20495439]
[1641462947118,27.66479,146.72,146.65,143.20495439]
[1641462947319,4.0,146.75,146.65,147.20495439]
[1641462947519,6.80874243,146.79,146.68,4.0]
[1641462947919,6.80735194,146.82,146.65,150.01230633]
[1641462948121,34.47214194,146.82,146.74,27.66479]
[1641462948324,27.66479,146.82,146.74,27.66479]
[1641462948722,27.66479,146.82,146.76,4.0]
[1641462948921,6.80503573,146.87,146.74,31.66479]
[1641462949123,6.80503573,146.87,146.79,4.0]
[1641462949326,6.80364675,146.9,146.79,4.0]
[1641462949523,6.80387821,146.89,146.82,4.0]
[1641462949723,6.80318389,146.91,146.82,4.0]
[1641462950123,6.80341531,146.9,146.82,4.0]
[1641462950324,34.46635436,146.94,146.86,27.66479]
[1641462950725,27.66479,146.96,146.86,31.66479]
[1641462950922,6.80133306,146.95,146.87,4.0]
[1641462951123,6.80133306,146.95,146.88,4.0]
[1641462951328,6.80133306,146.95,146.86,27.66479]
[1641462951525,27.66479,146.96,146.86,27.66479]
[1641462951725,27.66479,146.96,146.9,4.0]
[1641462952024,27.66479,146.96,146.86,27.66479]
[1641462952225,6.80225835,146.93,146.86,27.66479]
[1641462952424,6.80225835,146.93,146.83,4.0]
[1641462952625,6.80225835,146.93,146.81,31.66479]
[1641462952926,6.80225835,146.93,146.81,27.66479]
[1641462953124,10.80225835,146.93,146.81,27.66479]
[1641462953324,4.0,146.91,146.78,4.0]
[1641462953523,4.0,146.91,146.79,4.0]
[1641462953724,30.80225835,146.93,146.78,4.0]
[1641462953927,6.80434117,146.88,146.78,4.0]
[1641462954225,34.46913117,146.88,146.78,27.66479]
[1641462954424,32.47258169,146.88,146.84,14.42337507]
[1641462954825,4.80779169,146.88,146.84,14.42337507]
[1641462955225,6.80318389,146.91,146.84,18.42337507]
[1641462955425,38.46233353,146.95,146.89,4.0]
[1641462955625,38.46233353,146.95,146.84,14.42337507]
[1641462955825,38.46233353,146.95,146.89,4.0]
[1641462956026,38.46233353,146.95,146.85,4.0]
[1641462956226,38.46233353,146.95,146.86,27.66479]
[1641462956428,38.46233353,146.95,146.93,4.0]
[1641462956626,38.46233353,146.95,146.9,4.0]
[1641462956825,12.5213611,146.99,146.91,4.0]
[1641462957126,12.5213611,146.99,146.9,18.42337507]
[1641462957326,12.5213611,146.99,146.91,4.0]
[1641462957625,12.5213611,146.99,146.98,4.0]
[1641462957826,12.5213611,146.99,146.96,4.0]
[1641462958326,12.5213611,146.99,146.98,4.0]
[1641462958525,38.46233353,147.04,146.98,4.0]
[1641462958727,38.46233353,147.04,147.0,4.0]
[1641462959027,38.46233353,147.04,146.99,4.0]
[1641462959229,38.46233353,147.03,146.95,27.66479]
[1641462959429,57.69350029,147.07,146.95,27.66479]
[1641462960027,57.62951294,147.13,146.98,14.42337507]
[1641462960228,31.62951294,147.13,147.12,55.32958]
[1641462961229,118.87115168,147.17,147.12,55.32958]
[1641462961630,6.7884054,147.22,147.12,55.32958]
[1641462961830,4.0,147.21,147.12,55.32958]
[1641462962228,6.7884054,147.22,147.12,55.32958]
[1641462962430,10.78955766,147.2,147.12,55.32958]
[1641462962628,6.78955766,147.2,147.12,55.32958]
[1641462962928,6.7884054,147.22,147.12,55.32958]
[1641462963130,4.0,147.13,147.06,14.42337507]
[1641462963328,6.79186335,147.15,147.06,14.42337507]
[1641462963729,6.79232467,147.14,147.06,14.42337507]
[1641462963928,6.79232467,147.14,147.04,64.2069]
[1641462964331,4.0,147.12,147.04,91.87169]
[1641462964529,27.66479,147.13,147.04,27.66479]
[1641462964929,27.66479,147.15,147.04,27.66479]
[1641462965130,10.78955766,147.2,147.04,27.66479]
[1641462965330,6.78794461,147.23,147.07,6.78794461]
[1641462965530,3.48286268,147.12,147.1,6.78656261]
[1641462965731,96.15583382,147.2,147.1,6.78656261]
[1641462966330,96.15583382,147.2,147.14,27.66479]
[1641462966530,34.45135261,147.26,147.14,27.66479]
[1641462966831,4.0,147.23,147.14,27.66479]
[1641462967033,4.0,147.24,147.14,27.66479]
[1641462967234,34.45135261,147.26,147.14,27.66479]
[1641462967534,4.0,147.23,147.14,34.44905052]
[1641462967733,27.66479,147.26,147.14,34.44905052]
[1641462968333,27.66479,147.26,147.2,27.66479]
[1641462968733,96.15583382,147.31,147.2,27.66479]
[1641462969134,96.15583382,147.31,147.24,6.77989084]
[1641462969835,96.15583382,147.39,147.24,6.77989084]
[1641462970036,4.0,147.35,147.21,72.64937013]
[1641462970337,27.66479,147.34,147.24,27.66479]
[1641462971037,57.55135002,147.32,147.24,27.66479]
[1641462971236,57.55135002,147.32,147.24,34.44468084]
[1641462971436,57.55135002,147.32,147.24,27.66479]
[1641462971838,57.55135002,147.33,147.24,27.66479]
[1641462972236,57.55135002,147.33,147.24,55.32958]
[1641462973240,57.55135002,147.34,147.24,55.32958]
[1641462973439,5.002e-05,147.34,147.25,6.77920141]
[1641462973642,5.002e-05,147.34,147.24,55.32958]
[1641462973843,10.78357019,147.33,147.24,55.32958]
[1641462974040,27.66479,147.36,147.24,27.66479]
[1641462974443,27.66479,147.33,147.24,27.66479]
[1641462974641,31.66479,147.33,147.24,27.66479]
[1641462974841,4.0,147.26,147.22,14.42337507]
[1641462975041,6.78472081,147.3,147.2,27.66479]
[1641462975446,4.0,147.29,147.2,27.66479]
[1641462975642,6.78472081,147.3,147.2,27.66479]
[1641462976443,27.66479,147.29,147.2,27.66479]
[1641462976743,123.82062382,147.33,147.2,27.66479]
[1641462977047,123.82062382,147.33,147.21,6.78127013]
[1641462977245,27.66479,147.33,147.21,6.78127013]
[1641462977445,27.66479,147.33,147.24,6.77966102]
[1641462978046,27.66479,147.33,147.21,14.42337507]
[1641462978449,4.0,147.29,147.24,27.66479]
[1641462978647,4.0,147.26,147.21,14.42337507]
[1641462978847,4.0,147.32,147.21,14.42337507]
[1641462978848,4.0,147.29,147.21,14.42337507]
[1641462979047,4.0,147.22,147.21,14.42337507]
[1641462979247,4.0,147.22,147.2,27.66479]
[1641462979448,4.0,147.21,147.19,14.42337507]
[1641462979652,4.0,147.2,147.19,14.42337507]
[1641462979849,4.0,147.2,147.14,63.1366]
[1641462980050,4.0,147.15,147.1,14.393902]
[1641462980349,4.0,147.11,147.1,14.393902]
[1641462980548,4.0,147.11,147.07,38.38373868]
[1641462980749,4.0,147.08,147.07,38.38373868]
[1641462981249,4.0,147.08,147.01,27.66479]
[1641462981448,4.0,147.11,147.01,27.66479]
[1641462981649,4.0,147.07,147.01,27.66479]
[1641462981848,4.0,147.08,146.98,38.38373868]
[1641462982049,4.0,147.02,146.98,38.38373868]
[1641462982253,4.0,147.0,146.98,38.38373868]
[1641462982448,4.0,147.0,146.95,38.38373868]
[1641462983248,4.0,147.02,146.93,6.73681658]
[1641462983450,4.0,147.0,146.93,6.73681658]
[1641462983649,4.0,146.98,146.93,6.73681658]
[1641462983848,34.46150039,147.04,146.93,6.73681658]
[1641462984049,27.66479,147.04,146.93,6.73681658]
[1641462984249,4.0,147.0,146.93,6.73681658]
[1641462984449,4.0,147.0,146.92,77.22936732]
[1641462984450,27.66479,147.0,146.92,66.04852868]
[1641462984751,6.79647942,147.05,146.92,66.04852868]
[1641462984752,4.0,147.05,146.92,44.71770906]
[1641462985049,4.0,147.13,146.92,27.66479]
[1641462985251,4.0,147.06,146.92,27.66479]
[1641462985449,10.79370903,147.11,146.94,6.79370903]
[1641462985648,4.0,147.1,146.94,6.79370903]
[1641462985850,6.79370903,147.11,146.94,6.79370903]
[1641462986050,4.0,147.1,147.0,6.79117148]
[1641462986250,6.79255536,147.13,147.0,6.79117148]
[1641462986450,31.66479,147.15,147.02,27.66479]
[1641462986651,42.38373868,147.09,147.02,27.66479]
[1641462986850,38.38373868,147.09,147.02,27.66479]
[1641462987051,4.0,147.08,147.02,27.66479]
[1641462987254,38.38373868,147.09,147.02,27.66479]
[1641462987452,38.38373868,147.09,147.0,65.049]
[1641462987653,4.0,147.08,146.99,27.66479]
[1641462988152,4.0,147.03,146.99,27.66479]
[1641462988553,4.0,147.03,146.97,38.38373868]
[1641462988554,4.0,147.03,147.0,6.73428857]
[1641462988754,4.0,147.01,147.0,6.73428857]
[1641462988954,14.79855871,147.01,146.96,38.38373868]
[1641462989155,4.0,146.97,146.96,10.65003868]
[1641462989355,4.0,146.97,146.95,11.1772965]
[1641462989654,4.0,146.96,146.95,11.1772965]
[1641462990557,31.66479,146.96,146.95,8.1772965]
[1641462990757,42.46566051,146.96,146.92,56.64286889]
[1641462991059,4.0,146.94,146.86,56.64286889]
[1641462991457,4.0,147.0,146.86,56.64286889]
[1641462991657,4.0,147.0,146.85,95.10575542]
[1641462991856,4.0,147.0,146.85,91.10575542]
[1641462992056,4.0,147.0,146.85,95.10575542]
[1641462992258,4.0,146.99,146.85,91.10575542]
[1641462992461,27.66479,146.99,146.88,27.66479]
[1641462993058,4.0,146.97,146.88,27.66479]
[1641462993358,10.7999456,146.97,146.88,27.66479]
[1641462993559,6.7999456,146.97,146.88,27.66479]
[1641462993758,10.7999456,146.97,146.85,27.66479]
[1641462993957,6.7999456,146.97,146.85,27.66479]
[1641462994160,27.66479,146.99,146.87,4.0]
[1641462994457,4.0,147.0,146.89,27.66479]
[1641462994758,4.0,146.99,146.89,27.66479]
[1641462995059,27.66479,147.01,146.89,27.66479]
[1641462995459,27.66479,147.01,146.9,4.0]
[1641462995857,27.66479,147.04,146.9,4.0]
[1641462996057,27.66479,147.04,146.91,4.0]
[1641462996358,27.66479,146.97,146.88,27.66479]
[1641462996557,6.79948324,146.98,146.88,27.66479]
[1641462996757,4.0,146.97,146.88,27.66479]
[1641462996957,6.8001768,146.97,146.88,27.66479]
[1641462997157,6.8001768,146.97,146.85,27.66479]
[1641462997457,4.0,146.95,146.84,63.4719]
[1641462997658,10.8001768,146.97,146.84,63.4719]
[1641462998262,4.0,146.95,146.84,63.4719]
[1641462998461,27.66479,146.95,146.84,63.4719]
[1641462998861,27.66479,146.95,146.84,67.4719]
[1641462999060,6.8001768,146.97,146.84,67.4719]
[1641462999762,6.8001768,146.97,146.85,4.0]
[1641462999960,6.8001768,146.97,146.84,63.4719]
[1641463000560,4.0,146.96,146.87,27.66479]
[1641463000761,4.0,146.93,146.84,63.4719]
[1641463001161,6.8001768,146.97,146.84,63.4719]
[1641463001961,10.8001768,146.97,146.84,63.4719]
[1641463002161,6.8001768,146.97,146.84,63.4719]
[1641463002362,4.0,146.92,146.84,63.4719]
[1641463002561,6.8001768,146.97,146.88,27.66479]
[1641463002764,27.66479,146.99,146.89,4.0]
[1641463002961,6.79717238,147.03,146.9,4.0]
[1641463003361,6.79717238,147.03,146.91,4.0]
[1641463003762,6.79717238,147.03,146.9,4.0]
[1641463004161,4.0,147.01,146.88,27.66479]
[1641463004561,27.66479,147.01,146.88,27.66479]
[1641463004762,4.0,146.99,146.88,27.66479]
[1641463004962,4.0,146.98,146.88,27.66479]
[1641463005263,4.0,146.95,146.86,56.64286889]
[1641463005463,4.0,146.93,146.86,56.64286889]
[1641463005662,4.0,146.9,146.86,56.64286889]
[1641463005863,4.0,146.88,146.86,56.64286889]
[1641463006065,6.80387821,146.89,146.85,11.1712216]
[1641463006264,10.80387821,146.89,146.85,11.1712216]
[1641463006463,27.66479,146.86,146.83,57.658846]
[1641463006864,31.66479,146.86,146.83,57.658846]
[1641463007064,6.80549884,146.85,146.83,57.658846]
[1641463007263,4.0,146.84,146.79,96.15583382]
[1641463007466,4.0,146.81,146.79,96.15583382]
[1641463007665,4.0,146.81,146.74,15.76448207]
[1641463007868,4.0,146.8,146.74,15.76448207]
[1641463008264,4.0,146.81,146.74,15.76448207]
[1641463008564,27.66479,146.81,146.74,15.76448207]
[1641463008763,25.44580686,146.91,146.7,4.0]
[1641463008764,20.0,146.93,146.7,4.0]
[1641463008964,4.0,146.86,146.71,6.80457267]
[1641463009163,6.80457267,146.87,146.71,6.80457267]
[1641463009364,4.0,146.86,146.71,10.80457267]
[1641463009567,10.80457267,146.87,146.71,10.80457267]
[1641463009964,3.48800598,146.85,146.76,38.46850242]
[1641463010564,3.48800598,146.86,146.77,27.66479]
[1641463011864,27.66479,146.9,146.83,14.42168251]
[1641463012065,38.46850242,146.93,146.83,14.42168251]
[1641463012264,38.46850242,146.93,146.83,18.42168251]
[1641463012467,34.46542926,146.96,146.88,27.66479]
[1641463013168,6.80063926,146.96,146.88,27.66479]
[1641463013570,38.44890693,146.97,146.88,27.66479]
[1641463013768,7.48930504,147.01,146.88,27.66479]
[1641463013971,3.48930504,146.95,146.89,6.79601753]
[1641463014169,4.0,147.01,146.89,6.79601753]
[1641463014370,6.79601753,147.06,146.95,4.0]
[1641463014574,123.82062382,147.07,146.96,27.66479]
[1641463014870,40.15514295,147.07,146.96,27.66479]
[1641463015970,40.15514295,147.07,146.99,4.0]
[1641463016174,40.15514295,147.07,146.98,4.0]
[1641463016371,12.49035295,147.06,147.01,4.80235136]
[1641463016974,19.28637048,147.06,147.01,4.80235136]
[1641463017172,12.49035295,147.06,147.0,4.80235136]
[1641463019075,5.295e-05,147.06,147.01,4.0]
[1641463019276,5.295e-05,147.1,147.04,4.0]
[1641463019474,5.295e-05,147.1,147.03,4.0]
[1641463019676,5.295e-05,147.1,147.04,4.0]
[1641463019877,5.295e-05,147.1,147.06,4.0]
[1641463020177,64.42059756,147.17,147.07,4.0]
[1641463020375,57.62988725,147.17,147.07,4.0]
[1641463020679,57.62988725,147.17,147.08,4.0]
[1641463020878,57.62988725,147.17,147.09,4.0]
[1641463021080,57.62988725,147.17,147.11,4.0]
[1641463021480,57.62988725,147.2,147.08,4.79988499]
[1641463021676,57.62988725,147.2,147.13,4.0]
[1641463021876,57.62988725,147.2,147.08,8.79988499]
[1641463022178,57.62988725,147.2,147.11,4.0]
[1641463022478,6.7884054,147.22,147.11,4.79865679]
[1641463022676,57.62988725,147.23,147.12,30.85661314]
[1641463022878,57.62988725,147.23,147.15,6.78380028]
[1641463023279,57.62988725,147.23,147.15,23.83671934]
[1641463023480,17.62950187,147.24,147.15,6.78380028]
[1641463023678,31.66479,147.25,147.13,4.79819887]
[1641463023878,85.24317642,147.25,147.13,11.58314985]
[1641463024078,4.0,147.24,147.13,11.58314985]
[1641463024278,85.24317642,147.25,147.15,6.78403039]
[1641463024677,7.642e-05,147.25,147.2,27.66479]
[1641463024877,96.15583382,147.29,147.2,27.66479]
[1641463025278,44.71423382,147.29,147.2,27.66479]
[1641463025479,40.29895247,147.3,147.22,6.78081031]
[1641463025681,22.6694506,147.3,147.24,17.05291906]
[1641463025885,6.78218997,147.36,147.24,17.05291906]
[1641463025886,102.7028775,147.36,147.24,17.05291906]
[1641463026080,102.7028775,147.36,147.22,6.78081031]
[1641463026282,4.0,147.35,147.2,32.46298887]
[1641463026482,95.92068753,147.36,147.2,32.46298887]
[1641463026681,95.92068753,147.36,147.26,27.66479]
[1641463027083,4.0,147.35,147.26,27.66479]
[1641463027382,27.66479,147.37,147.26,27.66479]
[1641463027984,4.0,147.32,147.26,27.66479]
[1641463028587,4.0,147.32,147.3,27.66479]
[1641463029683,4.0,147.32,147.3,16.15966129]
[1641463029883,27.66479,147.37,147.3,16.15966129]
[1641463030086,5.247e-05,147.41,147.3,16.15966129]
[1641463030484,5.247e-05,147.41,147.32,6.77621548]
[1641463030686,5.247e-05,147.41,147.37,27.66479]
[1641463030886,5.247e-05,147.41,147.37,34.43871041]
[1641463031794,60.16198096,147.46,147.37,34.43871041]
[1641463032287,6.77392041,147.54,147.37,34.43871041]
[1641463032488,4.0,147.52,147.37,34.43871041]
[1641463032689,4.0,147.54,147.46,27.66479]
[1641463032889,4.0,147.54,147.46,34.43435404]
[1641463033089,4.0,147.55,147.46,34.43435404]
[1641463033289,4.0,147.56,147.46,34.43435404]
[1641463033490,38.31016538,147.47,147.46,51.4872731]
[1641463033693,10.20949566,147.47,147.46,51.4872731]
[1641463033892,6.76956404,147.63,147.46,34.43435404]
[1641463034093,147.30023607,147.66,147.49,6.76818951]
[1641463034294,6.77002234,147.62,147.46,27.66479]
[1641463034696,27.66479,147.6,147.46,27.66479]
[1641463034895,4.0,147.53,147.46,27.66479]
[1641463035095,4.0,147.47,147.44,32.46298887]
[1641463035296,4.0,147.49,147.44,32.46298887]
[1641463035497,10.77300281,147.56,147.44,32.46298887]
[1641463035696,57.4548424,147.53,147.44,27.66479]
[1641463035897,61.4548424,147.53,147.44,27.66479]
[1641463036096,57.4548424,147.53,147.44,27.66479]
[1641463036496,61.4548424,147.55,147.44,27.66479]
[1641463036696,57.4548424,147.55,147.49,27.66479]
[1641463037696,57.4548424,147.56,147.49,27.66479]
[1641463038497,6.77392041,147.54,147.44,32.46298887]
[1641463038697,27.66479,147.46,147.44,4.79819887]
[1641463038899,4.0,147.45,147.42,14.42168251]
[1641463039097,34.44238328,147.46,147.42,14.42168251]
[1641463039300,4.0,147.43,147.42,14.42168251]
[1641463039497,4.0,147.45,147.42,14.42168251]
[1641463039697,12.38208819,147.45,147.36,27.66479]
[1641463040500,12.38208819,147.47,147.38,6.77346158]
[1641463040699,12.38208819,147.47,147.42,27.66479]
[1641463041099,8.819e-05,147.47,147.42,27.66479]
[1641463041504,99.75807066,147.55,147.43,6.77116837]
[1641463041505,17.51303574,147.52,147.43,6.77116837]
[1641463042299,17.51303574,147.52,147.42,27.66479]
[1641463042300,17.51303574,147.52,147.44,23.82339976]
[1641463042499,4.0,147.56,147.44,6.7704807]
[1641463042699,4.0,147.52,147.44,6.7704807]
[1641463042900,4.0,147.47,147.42,27.66479]
[1641463043099,4.0,147.52,147.42,27.66479]
[1641463043301,4.0,147.44,147.42,27.66479]
[1641463043599,4.0,147.5,147.42,27.66479]
[1641463043799,4.0,147.44,147.42,27.66479]
[1641463044200,4.0,147.43,147.42,27.66479]
[1641463044601,4.0,147.43,147.38,27.66479]
[1641463044802,27.66479,147.49,147.38,27.66479]
[1641463044803,4.0,147.47,147.38,27.66479]
[1641463045102,4.0,147.44,147.38,27.66479]
[1641463045802,61.4548424,147.48,147.38,27.66479]
[1641463046002,4.0,147.45,147.38,27.66479]
[1641463046204,4.0,147.47,147.38,27.66479]
[1641463046402,4.0,147.42,147.38,27.66479]
[1641463046605,4.0,147.46,147.38,27.66479]
[1641463047404,8.0,147.39,147.36,27.66479]
[1641463047602,57.4548424,147.47,147.32,14.42168251]
[1641463047603,4.0,147.37,147.32,14.42168251]
[1641463047802,4.0,147.33,147.32,14.42168251]
[1641463048004,4.0,147.35,147.32,14.42168251]
[1641463048204,4.0,147.35,147.3,14.42168251]
[1641463048404,4.0,147.39,147.3,14.42168251]
[1641463048604,6.78035054,147.4,147.3,42.08647251]
[1641463048803,10.78035054,147.4,147.3,42.08647251]
[1641463049004,4.0,147.36,147.3,27.66479]